[Event "*** Titled Tuesday Blitz"]
[Site "Chess.com"]
[Date "2021.02.09"]
[Round "3"]
[White "shaheus"]
[Black "SirStrateg"]
[Result "0-1"]
[WhiteElo "2397"]
[BlackElo "2579"]
[TimeControl "180+1"]
[EndTime "10:29:10 PST"]
[Termination "SirStrateg won on time"]

1. e4 {[%clk 0:03:00.9]} 1... d6 {[%clk 0:03:00.3]} 2. Nf3 {[%clk 0:03:00.2]}
2... Nf6 {[%clk 0:03:00.6]} 3. Nc3 {[%clk 0:02:58.9]} 3... c6 {[%clk 0:03:00.8]}
4. d4 {[%clk 0:02:57.1]} 4... Bg4 {[%clk 0:03:00.9]} 5. h3 {[%clk 0:02:55.2]}
5... Bh5 {[%clk 0:03:01.3]} 6. Be2 {[%clk 0:02:51.6]} 6... e6 {[%clk 0:03:01.1]}
7. Be3 {[%clk 0:02:51.4]} 7... d5 {[%clk 0:03:01.4]} 8. exd5 {[%clk 0:02:37.7]}
8... cxd5 {[%clk 0:03:01.4]} 9. O-O {[%clk 0:02:30.6]} 9... Nc6 {[%clk
0:03:00.8]} 10. Re1 {[%clk 0:02:27.8]} 10... Be7 {[%clk 0:03:00.5]} 11. a3
{[%clk 0:02:26.3]} 11... a6 {[%clk 0:03:00.3]} 12. Ne5 {[%clk 0:02:16.4]} 12...
Bxe2 {[%clk 0:02:57.4]} 13. Nxe2 {[%clk 0:02:16.3]} 13... Qb6 {[%clk 0:02:47.9]}
14. b4 {[%clk 0:02:05]} 14... Rc8 {[%clk 0:02:42.5]} 15. Ng3 {[%clk 0:01:58.5]}
15... O-O {[%clk 0:02:37.8]} 16. Qd3 {[%clk 0:01:49.9]} 16... Qb5 {[%clk
0:02:35.5]} 17. Qxb5 {[%clk 0:01:41.3]} 17... axb5 {[%clk 0:02:35.3]} 18. c3
{[%clk 0:01:40.8]} 18... Ra8 {[%clk 0:02:23.7]} 19. Nxc6 {[%clk 0:01:30.3]}
19... bxc6 {[%clk 0:02:23.6]} 20. Bf4 {[%clk 0:01:25.5]} 20... Ra7 {[%clk
0:02:20.9]} 21. Re2 {[%clk 0:01:22.9]} 21... Rfa8 {[%clk 0:02:20.5]} 22. Rea2
{[%clk 0:01:19.7]} 22... g6 {[%clk 0:02:13.1]} 23. f3 {[%clk 0:01:19.6]} 23...
Ne8 {[%clk 0:02:11.1]} 24. Ne2 {[%clk 0:01:12.4]} 24... f6 {[%clk 0:02:01.4]}
25. Nc1 {[%clk 0:01:11.7]} 25... Nd6 {[%clk 0:01:56.6]} 26. Bxd6 {[%clk
0:01:10.9]} 26... Bxd6 {[%clk 0:01:57.5]} 27. Nd3 {[%clk 0:01:10.4]} 27... e5
{[%clk 0:01:52.8]} 28. Nc5 {[%clk 0:00:55.7]} 28... Kf7 {[%clk 0:01:51.2]} 29.
Kf2 {[%clk 0:00:55]} 29... h5 {[%clk 0:01:43.5]} 30. Ke3 {[%clk 0:00:54]} 30...
g5 {[%clk 0:01:41.8]} 31. Kd3 {[%clk 0:00:54.1]} 31... Kg6 {[%clk 0:01:34.3]}
32. Kc2 {[%clk 0:00:52]} 32... g4 {[%clk 0:01:34.1]} 33. hxg4 {[%clk 0:00:49.2]}
33... hxg4 {[%clk 0:01:34.2]} 34. Kb3 {[%clk 0:00:49.4]} 34... gxf3 {[%clk
0:01:22.6]} 35. gxf3 {[%clk 0:00:49.2]} 35... Kf5 {[%clk 0:01:23.2]} 36. Rh1
{[%clk 0:00:31]} 36... Rg8 {[%clk 0:01:08.1]} 37. a4 {[%clk 0:00:22]} 37... Bxc5
{[%clk 0:01:03.5]} 38. bxc5 {[%clk 0:00:18.6]} 38... bxa4+ {[%clk 0:00:56.7]}
39. Rxa4 {[%clk 0:00:18.6]} 39... Rb8+ {[%clk 0:00:53.2]} 40. Rb4 {[%clk
0:00:18.2]} 40... Rxb4+ {[%clk 0:00:53.5]} 41. Kxb4 {[%clk 0:00:17.2]} 41...
Rb7+ {[%clk 0:00:53.3]} 42. Ka4 {[%clk 0:00:16.7]} 42... e4 {[%clk 0:00:49.1]}
43. fxe4+ {[%clk 0:00:13.8]} 43... Kxe4 {[%clk 0:00:48.3]} 44. Rh6 {[%clk
0:00:11.3]} 44... Rf7 {[%clk 0:00:42.5]} 45. Ka5 {[%clk 0:00:10.2]} 45... Kd3
{[%clk 0:00:42.3]} 46. Kb6 {[%clk 0:00:09.8]} 46... Kxc3 {[%clk 0:00:43]} 47.
Kxc6 {[%clk 0:00:09.8]} 47... Kxd4 {[%clk 0:00:43.6]} 48. Kd6 {[%clk 0:00:10.1]}
48... f5 {[%clk 0:00:40.8]} 49. c6 {[%clk 0:00:10.2]} 49... f4 {[%clk 0:00:41]}
50. c7 {[%clk 0:00:03.5]} 50... Rf8 {[%clk 0:00:40.9]} 0-1

[Event "*** Titled Tuesday Blitz"]
[Site "Chess.com"]
[Date "2021.02.09"]
[Round "3"]
[White "MVM2008"]
[Black "ZivkovicN"]
[Result "1-0"]
[WhiteElo "2127"]
[BlackElo "2457"]
[TimeControl "180+1"]
[EndTime "10:29:10 PST"]
[Termination "MVM2008 won by resignation"]

1. e4 {[%clk 0:03:00.9]} 1... c5 {[%clk 0:02:59.7]} 2. Nf3 {[%clk 0:03:00.5]}
2... d6 {[%clk 0:02:59.9]} 3. d4 {[%clk 0:03:00.6]} 3... cxd4 {[%clk 0:03:00.8]}
4. Nxd4 {[%clk 0:03:00.8]} 4... Nf6 {[%clk 0:03:01]} 5. Nc3 {[%clk 0:03:01.1]}
5... a6 {[%clk 0:03:01]} 6. Bc4 {[%clk 0:02:55.6]} 6... e6 {[%clk 0:03:00.9]} 7.
Be3 {[%clk 0:02:55.2]} 7... b5 {[%clk 0:03:01.1]} 8. Bb3 {[%clk 0:02:54.9]} 8...
Be7 {[%clk 0:03:01.7]} 9. f3 {[%clk 0:02:50.1]} 9... Bb7 {[%clk 0:02:57.6]} 10.
Bxe6 {[%clk 0:02:35]} 10... fxe6 {[%clk 0:02:57]} 11. Nxe6 {[%clk 0:02:35.9]}
11... Qc8 {[%clk 0:02:52.7]} 12. Nxg7+ {[%clk 0:02:35.1]} 12... Kf7 {[%clk
0:02:52.3]} 13. Nf5 {[%clk 0:02:29.7]} 13... Nbd7 {[%clk 0:02:47.9]} 14. g4
{[%clk 0:02:17.8]} 14... b4 {[%clk 0:02:28.2]} 15. Ne2 {[%clk 0:01:56.7]} 15...
Ne5 {[%clk 0:02:20.6]} 16. Ned4 {[%clk 0:01:51.9]} 16... Nc4 {[%clk 0:02:06.3]}
17. Bg5 {[%clk 0:00:51]} 17... h5 {[%clk 0:01:47]} 18. Nxe7 {[%clk 0:00:44.2]}
18... Kxe7 {[%clk 0:01:41.7]} 19. Nf5+ {[%clk 0:00:39.7]} 19... Kf7 {[%clk
0:01:10.5]} 20. b3 {[%clk 0:00:27.5]} 20... Re8 {[%clk 0:00:20.4]} 21. bxc4
{[%clk 0:00:07.9]} 21... Nxe4 {[%clk 0:00:19.1]} 22. O-O {[%clk 0:00:06.5]}
22... Kg6 {[%clk 0:00:14.1]} 23. fxe4 {[%clk 0:00:05.6]} 23... Bxe4 {[%clk
0:00:13.5]} 24. Qxd6+ {[%clk 0:00:04]} 24... Re6 {[%clk 0:00:12.9]} 25. Ne7+
{[%clk 0:00:04.2]} 25... Kxg5 {[%clk 0:00:11.4]} 26. Nxc8 {[%clk 0:00:04.5]}
26... Rxd6 {[%clk 0:00:11.4]} 27. Nxd6 {[%clk 0:00:05.4]} 27... Bc6 {[%clk
0:00:10.9]} 28. c5 {[%clk 0:00:05.4]} 28... a5 {[%clk 0:00:10.9]} 29. gxh5
{[%clk 0:00:04.9]} 29... Ra7 {[%clk 0:00:10.8]} 30. Rf5+ {[%clk 0:00:03.7]}
30... Kh6 {[%clk 0:00:11.1]} 31. Raf1 {[%clk 0:00:03.7]} 31... Rg7+ {[%clk
0:00:11.2]} 32. Kf2 {[%clk 0:00:02.4]} 32... Rg2+ {[%clk 0:00:12.1]} 33. Ke1
{[%clk 0:00:02.9]} 33... Rxc2 {[%clk 0:00:13]} 34. Rf6+ {[%clk 0:00:03.5]} 34...
Kxh5 {[%clk 0:00:13.4]} 35. R1f5+ {[%clk 0:00:03.8]} 35... Kg4 {[%clk
0:00:13.9]} 36. Rg6+ {[%clk 0:00:03.9]} 36... Kh4 {[%clk 0:00:14.4]} 37. Rf4+
{[%clk 0:00:03.9]} 37... Kh5 {[%clk 0:00:14.3]} 38. Rgf6 {[%clk 0:00:04.2]}
38... Rxc5 {[%clk 0:00:12.4]} 39. R6f5+ {[%clk 0:00:03.9]} 39... Rxf5 {[%clk
0:00:12.7]} 40. Rxf5+ {[%clk 0:00:04.8]} 40... Kg6 {[%clk 0:00:13.6]} 41. Rb5
{[%clk 0:00:05]} 41... Kf6 {[%clk 0:00:14.5]} 42. Rxa5 {[%clk 0:00:05.2]} 42...
Ke6 {[%clk 0:00:15.1]} 43. Nc4 {[%clk 0:00:05.6]} 1-0

[Event "*** Titled Tuesday Blitz"]
[Site "Chess.com"]
[Date "2021.02.09"]
[Round "3"]
[White "JiiHart"]
[Black "kai_nov"]
[Result "1-0"]
[WhiteElo "2108"]
[BlackElo "2384"]
[TimeControl "180+1"]
[EndTime "10:29:11 PST"]
[Termination "JiiHart won on time"]

1. e4 {[%clk 0:03:00.9]} 1... c5 {[%clk 0:02:59.5]} 2. Nf3 {[%clk 0:03:00.7]}
2... Nc6 {[%clk 0:02:57.8]} 3. d4 {[%clk 0:02:59.8]} 3... cxd4 {[%clk
0:02:57.2]} 4. Nxd4 {[%clk 0:03:00.3]} 4... Nf6 {[%clk 0:02:56.4]} 5. Nc3 {[%clk
0:03:00.7]} 5... e5 {[%clk 0:02:55.9]} 6. Ndb5 {[%clk 0:02:59.8]} 6... d6 {[%clk
0:02:53.8]} 7. Bg5 {[%clk 0:02:59.2]} 7... a6 {[%clk 0:02:48.8]} 8. Bxf6 {[%clk
0:02:58.9]} 8... gxf6 {[%clk 0:02:48.4]} 9. Na3 {[%clk 0:02:59.4]} 9... b5
{[%clk 0:02:48]} 10. Nd5 {[%clk 0:02:59.9]} 10... f5 {[%clk 0:02:47.9]} 11. Bd3
{[%clk 0:03:00]} 11... Be6 {[%clk 0:02:47.4]} 12. Qh5 {[%clk 0:02:59.7]} 12...
Rg8 {[%clk 0:02:43.6]} 13. O-O-O {[%clk 0:02:57.2]} 13... Rxg2 {[%clk
0:02:27.1]} 14. Rhg1 {[%clk 0:02:45.2]} 14... Rg4 {[%clk 0:01:50]} 15. Rxg4
{[%clk 0:02:21.6]} 15... fxg4 {[%clk 0:01:44.9]} 16. Qxh7 {[%clk 0:02:18.5]}
16... Qg5+ {[%clk 0:01:39.9]} 17. Kb1 {[%clk 0:02:17.8]} 17... Rc8 {[%clk
0:01:29.5]} 18. Qh8 {[%clk 0:01:49.1]} 18... Nd4 {[%clk 0:01:13.9]} 19. c3
{[%clk 0:01:22.6]} 19... Nf3 {[%clk 0:01:07.2]} 20. Nxb5 {[%clk 0:00:53.8]}
20... Bxd5 {[%clk 0:00:56.6]} 21. Nxd6+ {[%clk 0:00:52.4]} 21... Kd7 {[%clk
0:00:43.1]} 22. Nxc8 {[%clk 0:00:52.4]} 22... Nd2+ {[%clk 0:00:41.7]} 23. Ka1
{[%clk 0:00:47.7]} 23... Bg7 {[%clk 0:00:29.4]} 24. Nb6+ {[%clk 0:00:33.8]}
24... Kc6 {[%clk 0:00:29]} 25. exd5+ {[%clk 0:00:32]} 25... Kxb6 {[%clk
0:00:21.8]} 26. Qb8+ {[%clk 0:00:31.8]} 26... Kc5 {[%clk 0:00:21.9]} 27. Qc7+
{[%clk 0:00:18.1]} 27... Kxd5 {[%clk 0:00:21.4]} 28. Bc4+ {[%clk 0:00:16.2]}
28... Ke4 {[%clk 0:00:19.1]} 29. Qc6+ {[%clk 0:00:13.3]} 29... Kf5 {[%clk
0:00:17.2]} 30. Bxf7 {[%clk 0:00:11.1]} 30... Qf4 {[%clk 0:00:08.7]} 31. Qe6+
{[%clk 0:00:10]} 31... Ke4 {[%clk 0:00:07.4]} 32. Qd5+ {[%clk 0:00:07.3]} 32...
Kf5 {[%clk 0:00:06.7]} 33. Qxd2 {[%clk 0:00:05.8]} 33... Qf3 {[%clk 0:00:06.9]}
34. Qd3+ {[%clk 0:00:04.9]} 34... e4 {[%clk 0:00:05.8]} 35. Qd5+ {[%clk
0:00:04.3]} 35... Kf6 {[%clk 0:00:03.7]} 36. Qe6+ {[%clk 0:00:04.5]} 36... Kg5
{[%clk 0:00:03.7]} 37. Qg6+ {[%clk 0:00:04.7]} 1-0

[Event "*** Titled Tuesday Blitz"]
[Site "Chess.com"]
[Date "2021.02.09"]
[Round "3"]
[White "BJthechessgod"]
[Black "esrosenberg"]
[Result "0-1"]
[WhiteElo "2284"]
[BlackElo "2047"]
[TimeControl "180+1"]
[EndTime "10:29:13 PST"]
[Termination "esrosenberg won on time"]

1. e4 {[%clk 0:03:00.9]} 1... e6 {[%clk 0:02:58.5]} 2. d4 {[%clk 0:03:00.6]}
2... d5 {[%clk 0:02:59.1]} 3. Nc3 {[%clk 0:03:01.5]} 3... Bb4 {[%clk 0:02:58.7]}
4. e5 {[%clk 0:02:46.9]} 4... c5 {[%clk 0:02:58.1]} 5. a3 {[%clk 0:02:31]} 5...
Bxc3+ {[%clk 0:02:58]} 6. bxc3 {[%clk 0:02:31.9]} 6... Ne7 {[%clk 0:02:58.6]} 7.
Nf3 {[%clk 0:02:23.2]} 7... b6 {[%clk 0:02:52.6]} 8. a4 {[%clk 0:02:21.2]} 8...
Ba6 {[%clk 0:02:46.2]} 9. Bb5+ {[%clk 0:02:17.2]} 9... Bxb5 {[%clk 0:02:44.5]}
10. axb5 {[%clk 0:02:18.1]} 10... Qd7 {[%clk 0:02:44.8]} 11. Qe2 {[%clk
0:02:01.4]} 11... c4 {[%clk 0:02:41.2]} 12. Rb1 {[%clk 0:01:53.4]} 12... a6
{[%clk 0:02:41.6]} 13. bxa6 {[%clk 0:01:47.4]} 13... Rxa6 {[%clk 0:02:41.6]} 14.
O-O {[%clk 0:01:46.8]} 14... Qa7 {[%clk 0:02:26]} 15. Ng5 {[%clk 0:01:42.1]}
15... Nbc6 {[%clk 0:02:02]} 16. Qh5 {[%clk 0:01:37.3]} 16... Ng6 {[%clk
0:01:36.5]} 17. f4 {[%clk 0:01:21.8]} 17... Ra2 {[%clk 0:01:27.1]} 18. f5 {[%clk
0:01:16.1]} 18... exf5 {[%clk 0:01:27.1]} 19. Rxf5 {[%clk 0:01:13.8]} 19... Rxc2
{[%clk 0:01:08.9]} 20. Rxf7 {[%clk 0:01:06.4]} 20... Qa2 {[%clk 0:01:07.8]} 21.
Qg4 {[%clk 0:00:49.8]} 21... Rxg2+ {[%clk 0:00:47.3]} 22. Qxg2 {[%clk
0:00:50.7]} 22... Qxb1 {[%clk 0:00:47.7]} 23. Qf1 {[%clk 0:00:30.1]} 23... h6
{[%clk 0:00:25.3]} 24. Ne6 {[%clk 0:00:28]} 24... Ncxe5 {[%clk 0:00:13.9]} 25.
Nxg7+ {[%clk 0:00:24.5]} 25... Kd8 {[%clk 0:00:13.9]} 26. Ne6+ {[%clk
0:00:24.4]} 26... Kc8 {[%clk 0:00:14.3]} 27. dxe5 {[%clk 0:00:23.9]} 27... Nxe5
{[%clk 0:00:13.7]} 28. Rc7+ {[%clk 0:00:24]} 28... Kb8 {[%clk 0:00:13.7]} 29.
Bf4 {[%clk 0:00:24.3]} 29... Rg8+ {[%clk 0:00:13.5]} 30. Kf2 {[%clk 0:00:22.7]}
30... Nd3+ {[%clk 0:00:12]} 31. Ke2 {[%clk 0:00:09.8]} 31... Qxf1+ {[%clk
0:00:11.8]} 32. Kxf1 {[%clk 0:00:09.8]} 32... Nxf4 {[%clk 0:00:12.5]} 33. Re7
{[%clk 0:00:05.9]} 33... Nxe6 {[%clk 0:00:11.8]} 34. Rxe6 {[%clk 0:00:06.8]}
34... Kc7 {[%clk 0:00:11.2]} 35. Rxh6 {[%clk 0:00:07]} 35... Rd8 {[%clk
0:00:10.5]} 36. h4 {[%clk 0:00:06.7]} 36... d4 {[%clk 0:00:11]} 37. cxd4 {[%clk
0:00:07.1]} 37... c3 {[%clk 0:00:11]} 38. Ke2 {[%clk 0:00:04.6]} 38... Rxd4
{[%clk 0:00:11.1]} 39. Rh7+ {[%clk 0:00:04.9]} 39... Kc6 {[%clk 0:00:11.4]} 40.
Rh8 {[%clk 0:00:05.2]} 40... Rd7 {[%clk 0:00:10.6]} 41. h5 {[%clk 0:00:05]}
41... Kb7 {[%clk 0:00:09.6]} 42. h6 {[%clk 0:00:01.9]} 42... c2 {[%clk
0:00:09.8]} 0-1

[Event "*** Titled Tuesday Blitz"]
[Site "Chess.com"]
[Date "2021.02.09"]
[Round "3"]
[White "rpragchess"]
[Black "albi1999"]
[Result "1-0"]
[WhiteElo "2861"]
[BlackElo "2621"]
[TimeControl "180+1"]
[EndTime "10:29:14 PST"]
[Termination "rpragchess won on time"]

1. Nc3 {[%clk 0:03:00.9]} 1... d5 {[%clk 0:02:58.6]} 2. e4 {[%clk 0:03:00.1]}
2... dxe4 {[%clk 0:02:49.7]} 3. Nxe4 {[%clk 0:03:01]} 3... Nf6 {[%clk
0:02:46.3]} 4. Nxf6+ {[%clk 0:02:59]} 4... exf6 {[%clk 0:02:47.2]} 5. Nf3 {[%clk
0:02:59.5]} 5... Bd6 {[%clk 0:02:46.6]} 6. Bb5+ {[%clk 0:02:56.2]} 6... c6
{[%clk 0:02:42.5]} 7. Qe2+ {[%clk 0:02:56]} 7... Qe7 {[%clk 0:02:37.6]} 8. Qxe7+
{[%clk 0:02:55.2]} 8... Bxe7 {[%clk 0:02:36.6]} 9. Bc4 {[%clk 0:02:56.1]} 9...
O-O {[%clk 0:02:34.4]} 10. O-O {[%clk 0:02:55.9]} 10... Bf5 {[%clk 0:02:30.8]}
11. c3 {[%clk 0:02:55.4]} 11... Nd7 {[%clk 0:02:15.7]} 12. d4 {[%clk 0:02:55.4]}
12... Bd6 {[%clk 0:02:15]} 13. Be3 {[%clk 0:02:53.1]} 13... b5 {[%clk 0:02:14]}
14. Bb3 {[%clk 0:02:52.2]} 14... Nb6 {[%clk 0:02:13.8]} 15. Rac1 {[%clk
0:02:43]} 15... a5 {[%clk 0:02:07.3]} 16. Bc2 {[%clk 0:02:41.3]} 16... Bxc2
{[%clk 0:02:05.2]} 17. Rxc2 {[%clk 0:02:42.2]} 17... a4 {[%clk 0:02:04.4]} 18.
b3 {[%clk 0:02:38.5]} 18... axb3 {[%clk 0:02:04.2]} 19. axb3 {[%clk 0:02:39.4]}
19... Ra3 {[%clk 0:02:01.7]} 20. c4 {[%clk 0:02:39.6]} 20... Bb4 {[%clk
0:01:47.6]} 21. d5 {[%clk 0:02:24.4]} 21... c5 {[%clk 0:01:41.5]} 22. Nd2 {[%clk
0:01:55.5]} 22... Rc8 {[%clk 0:01:31.2]} 23. Ne4 {[%clk 0:01:46.5]} 23... bxc4
{[%clk 0:00:53.8]} 24. bxc4 {[%clk 0:01:41.4]} 24... Ra4 {[%clk 0:00:53.7]} 25.
Rb1 {[%clk 0:01:34.9]} 25... h6 {[%clk 0:00:52.7]} 26. g4 {[%clk 0:01:31.8]}
26... Nd7 {[%clk 0:00:48.9]} 27. Bf4 {[%clk 0:01:22.6]} 27... Rca8 {[%clk
0:00:39.2]} 28. Kg2 {[%clk 0:00:59.5]} 28... Ra2 {[%clk 0:00:39.2]} 29. Rbb2
{[%clk 0:00:53.2]} 29... Ra1 {[%clk 0:00:36.9]} 30. Bd2 {[%clk 0:00:52.5]} 30...
Bxd2 {[%clk 0:00:33.7]} 31. Nxd2 {[%clk 0:00:51.8]} 31... Ne5 {[%clk 0:00:32.9]}
32. Rb5 {[%clk 0:00:37.2]} 32... R8a2 {[%clk 0:00:25.6]} 33. Rcb2 {[%clk
0:00:22.9]} 33... Rxb2 {[%clk 0:00:22.5]} 34. Rxb2 {[%clk 0:00:23.8]} 34... Rc1
{[%clk 0:00:18.7]} 35. d6 {[%clk 0:00:23.6]} 35... Ra1 {[%clk 0:00:06.1]} 36.
Nb3 {[%clk 0:00:08.5]} 36... Rd1 {[%clk 0:00:03.9]} 37. Nd2 {[%clk 0:00:06.5]}
37... g6 {[%clk 0:00:01.7]} 38. f4 {[%clk 0:00:06.3]} 1-0

[Event "*** Titled Tuesday Blitz"]
[Site "Chess.com"]
[Date "2021.02.09"]
[Round "3"]
[White "esapunov"]
[Black "eduardoperalta"]
[Result "1-0"]
[WhiteElo "2732"]
[BlackElo "2390"]
[TimeControl "180+1"]
[EndTime "10:29:14 PST"]
[Termination "esapunov won on time"]

1. c4 {[%clk 0:03:00.9]} 1... c5 {[%clk 0:02:57.7]} 2. Nf3 {[%clk 0:03:00.6]}
2... Nc6 {[%clk 0:02:55.7]} 3. Nc3 {[%clk 0:03:00.7]} 3... e5 {[%clk 0:02:49.9]}
4. e3 {[%clk 0:03:00.6]} 4... g6 {[%clk 0:02:48.6]} 5. d4 {[%clk 0:03:00.7]}
5... Bg7 {[%clk 0:02:24.6]} 6. dxc5 {[%clk 0:02:55.5]} 6... Nge7 {[%clk
0:02:14.1]} 7. Be2 {[%clk 0:02:51.3]} 7... O-O {[%clk 0:02:13.5]} 8. O-O {[%clk
0:02:51.4]} 8... Qa5 {[%clk 0:02:12.4]} 9. a3 {[%clk 0:02:43.5]} 9... Qxc5
{[%clk 0:02:09.9]} 10. b4 {[%clk 0:02:43.3]} 10... Qb6 {[%clk 0:02:09.5]} 11.
Bb2 {[%clk 0:02:42.8]} 11... Qd8 {[%clk 0:02:07.8]} 12. Qd2 {[%clk 0:02:37.1]}
12... a6 {[%clk 0:01:36.9]} 13. Rfd1 {[%clk 0:02:36.4]} 13... Rb8 {[%clk
0:01:32]} 14. Ng5 {[%clk 0:02:27.7]} 14... Nf5 {[%clk 0:01:13.7]} 15. Nge4
{[%clk 0:02:25.3]} 15... b6 {[%clk 0:01:11]} 16. Rac1 {[%clk 0:02:10.4]} 16...
Qe7 {[%clk 0:01:06.1]} 17. Bg4 {[%clk 0:02:07.1]} 17... d6 {[%clk 0:00:53.3]}
18. Nd5 {[%clk 0:01:44.6]} 18... Qd8 {[%clk 0:00:52.4]} 19. Bh3 {[%clk
0:01:42.7]} 19... Be6 {[%clk 0:00:51.6]} 20. a4 {[%clk 0:01:30.4]} 20... Kh8
{[%clk 0:00:50.6]} 21. Ba3 {[%clk 0:01:29.6]} 21... Nh4 {[%clk 0:00:19.4]} 22.
Bxe6 {[%clk 0:01:20.5]} 22... fxe6 {[%clk 0:00:20.3]} 23. Ndc3 {[%clk
0:01:20.9]} 23... Nf5 {[%clk 0:00:13.2]} 24. Nxd6 {[%clk 0:01:15.3]} 24... Qg5
{[%clk 0:00:13.2]} 25. Nce4 {[%clk 0:01:13.3]} 25... Qh6 {[%clk 0:00:12.3]} 26.
b5 {[%clk 0:01:11.3]} 26... axb5 {[%clk 0:00:11.8]} 27. cxb5 {[%clk 0:01:10]}
27... Na5 {[%clk 0:00:10.8]} 28. Nxf5 {[%clk 0:01:05.1]} 28... gxf5 {[%clk
0:00:08.8]} 29. Bxf8 {[%clk 0:01:04.3]} 29... Rxf8 {[%clk 0:00:06.7]} 30. Nd6
{[%clk 0:01:00.1]} 30... Nb3 {[%clk 0:00:06.9]} 31. Qc2 {[%clk 0:00:56.4]} 31...
Nxc1 {[%clk 0:00:07.1]} 32. Rxc1 {[%clk 0:00:56.6]} 32... e4 {[%clk 0:00:07.6]}
33. g3 {[%clk 0:00:52.4]} 33... e5 {[%clk 0:00:04.4]} 34. Qc6 {[%clk 0:00:49.5]}
34... Qh5 {[%clk 0:00:01.4]} 35. Qd7 {[%clk 0:00:44]} 35... f4 {[%clk
0:00:01.5]} 36. exf4 {[%clk 0:00:36.9]} 36... exf4 {[%clk 0:00:01.9]} 37. Nxe4
{[%clk 0:00:36.9]} 37... f3 {[%clk 0:00:01.6]} 38. a5 {[%clk 0:00:29]} 38... Qg6
{[%clk 0:00:01.9]} 39. Qc6 {[%clk 0:00:25.2]} 39... Qh6 {[%clk 0:00:02]} 40. Kh1
{[%clk 0:00:20.3]} 40... bxa5 {[%clk 0:00:02.2]} 41. b6 {[%clk 0:00:20]} 41...
Qxc6 {[%clk 0:00:01.8]} 42. Rxc6 {[%clk 0:00:20]} 42... Rb8 {[%clk 0:00:01.9]}
43. b7 {[%clk 0:00:18.4]} 1-0

[Event "*** Titled Tuesday Blitz"]
[Site "Chess.com"]
[Date "2021.02.09"]
[Round "3"]
[White "canary2016"]
[Black "Homino"]
[Result "0-1"]
[WhiteElo "1995"]
[BlackElo "2284"]
[TimeControl "180+1"]
[EndTime "10:29:15 PST"]
[Termination "Homino won by checkmate"]

1. Nf3 {[%clk 0:03:00.9]} 1... c5 {[%clk 0:02:59.5]} 2. c4 {[%clk 0:03:00.3]}
2... Nc6 {[%clk 0:02:57.7]} 3. Nc3 {[%clk 0:03:00]} 3... g6 {[%clk 0:02:56.9]}
4. d4 {[%clk 0:02:59.1]} 4... cxd4 {[%clk 0:02:55.3]} 5. Nxd4 {[%clk 0:02:59.1]}
5... Nf6 {[%clk 0:02:52.2]} 6. e4 {[%clk 0:02:58.8]} 6... Nxd4 {[%clk
0:02:50.1]} 7. Qxd4 {[%clk 0:02:58.5]} 7... d6 {[%clk 0:02:50.4]} 8. Be3 {[%clk
0:02:58.3]} 8... Bg7 {[%clk 0:02:50.1]} 9. Be2 {[%clk 0:02:58]} 9... O-O {[%clk
0:02:49.6]} 10. Qd2 {[%clk 0:02:57.7]} 10... Be6 {[%clk 0:02:47.5]} 11. O-O
{[%clk 0:02:57.3]} 11... a5 {[%clk 0:02:46.5]} 12. Bf3 {[%clk 0:02:51.6]} 12...
a4 {[%clk 0:02:44]} 13. Rfd1 {[%clk 0:02:47.2]} 13... Bxc4 {[%clk 0:02:38.4]}
14. e5 {[%clk 0:02:34.8]} 14... dxe5 {[%clk 0:02:30.5]} 15. Bxb7 {[%clk
0:02:32.9]} 15... Rb8 {[%clk 0:02:16.3]} 16. Bc6 {[%clk 0:02:30]} 16... a3
{[%clk 0:01:58.8]} 17. bxa3 {[%clk 0:02:22.9]} 17... Qa5 {[%clk 0:01:53.1]} 18.
Nd5 {[%clk 0:01:35.9]} 18... Qxa3 {[%clk 0:01:33.2]} 19. Nxe7+ {[%clk
0:01:31.1]} 19... Qxe7 {[%clk 0:01:32]} 20. Qc3 {[%clk 0:01:21.9]} 20... Ba6
{[%clk 0:01:19.8]} 21. Bc5 {[%clk 0:01:20.8]} 21... Qc7 {[%clk 0:00:53]} 22. Bd6
{[%clk 0:01:12.9]} 22... Ne4 {[%clk 0:00:36.4]} 23. Bxc7 {[%clk 0:00:09.9]}
23... Nxc3 {[%clk 0:00:35.3]} 24. Bxb8 {[%clk 0:00:06.2]} 24... Nxd1 {[%clk
0:00:35.3]} 25. Bd6 {[%clk 0:00:04.7]} 25... Rc8 {[%clk 0:00:34.6]} 26. Bf3
{[%clk 0:00:04.4]} 26... Nc3 {[%clk 0:00:29.1]} 27. Re1 {[%clk 0:00:01.9]} 27...
e4 {[%clk 0:00:19.9]} 28. Be2 {[%clk 0:00:01.9]} 28... Nxe2+ {[%clk 0:00:19.3]}
29. Kh1 {[%clk 0:00:02.2]} 29... Rc1 {[%clk 0:00:18.6]} 30. Rxc1 {[%clk
0:00:02.4]} 30... Nxc1 {[%clk 0:00:19.5]} 31. Bf4 {[%clk 0:00:03]} 31... Nxa2
{[%clk 0:00:19.3]} 32. Be3 {[%clk 0:00:03.6]} 32... f5 {[%clk 0:00:18.8]} 33. h3
{[%clk 0:00:04.2]} 33... Nc3 {[%clk 0:00:18.6]} 34. Kh2 {[%clk 0:00:04.6]} 34...
Nd5 {[%clk 0:00:18.5]} 35. Bc5 {[%clk 0:00:04.4]} 35... Kf7 {[%clk 0:00:18.2]}
36. f3 {[%clk 0:00:04.4]} 36... Be5+ {[%clk 0:00:16.8]} 37. Kg1 {[%clk
0:00:04.1]} 37... e3 {[%clk 0:00:16.4]} 38. Bb4 {[%clk 0:00:03.3]} 38... Nxb4
{[%clk 0:00:15.1]} 39. g4 {[%clk 0:00:04.2]} 39... f4 {[%clk 0:00:14.9]} 40. g5
{[%clk 0:00:05.1]} 40... e2 {[%clk 0:00:14.1]} 41. h4 {[%clk 0:00:06]} 41...
e1=Q+ {[%clk 0:00:13.8]} 42. Kg2 {[%clk 0:00:05.7]} 42... Qg3+ {[%clk
0:00:13.3]} 43. Kh1 {[%clk 0:00:06.6]} 43... Qxf3+ {[%clk 0:00:13.1]} 44. Kg1
{[%clk 0:00:06.1]} 44... Bd4+ {[%clk 0:00:12.4]} 45. Kh2 {[%clk 0:00:05]} 45...
Qg3+ {[%clk 0:00:12.7]} 46. Kh1 {[%clk 0:00:04.6]} 46... Bb7# {[%clk 0:00:12.4]}
0-1